bitfinex/quotes_BTCUSD_20250711
["timestamp","ask_amount","ask_price","bid_price","bid_amount"]
[1752244322245,0.002,117990.0,117980.0,1.08646225]
[1752244322872,0.005,117990.0,117980.0,1.08646225]
[1752244323077,0.00701,117990.0,117980.0,0.5614882]
[1752244323284,0.005,117990.0,117980.0,0.5614882]
[1752244323495,0.005,117990.0,117980.0,1.08626225]
[1752244323685,0.005,117990.0,117980.0,1.11407225]
[1752244323898,0.005,117990.0,117980.0,1.12276569]
[1752244324534,0.002,117990.0,117980.0,1.12276569]
[1752244324893,0.004,117990.0,117980.0,1.12276569]
[1752244325532,0.005,117990.0,117980.0,1.12276569]
[1752244326139,0.004,117990.0,117980.0,1.12276569]
[1752244326539,0.004,117990.0,117980.0,1.12376569]
[1752244328300,0.004,117990.0,117980.0,0.6113882]
[1752244328526,0.004,117990.0,117980.0,1.08726225]
[1752244328713,0.00601,117990.0,117980.0,0.54794735]
[1752244328924,0.00601,117990.0,117980.0,0.5624882]
[1752244329132,0.00601,117990.0,117980.0,0.5710582]
[1752244329340,0.004,117990.0,117980.0,1.09583225]
[1752244330361,0.004,117990.0,117980.0,1.12294225]
[1752244332176,0.004,117990.0,117980.0,1.06084225]
[1752244332374,0.004,117990.0,117980.0,1.08626942]
[1752244332636,1e-08,117990.0,117980.0,1.08626942]
[1752244333263,1e-08,117990.0,117980.0,1.42626942]
[1752244336276,0.0022,118010.0,118000.0,0.72068842]
[1752244336483,0.00234972,118010.0,118000.0,1.07216835]
[1752244336702,0.00234972,118010.0,118000.0,1.09806835]
[1752244336907,0.00234972,118010.0,118000.0,1.10129835]
[1752244337433,0.00534972,118010.0,118000.0,1.10129835]
[1752244337685,0.00534972,118010.0,118000.0,1.09806835]
[1752244338058,0.00534972,118010.0,118000.0,1.07216835]
[1752244338267,0.00434972,118010.0,118000.0,0.5716943]
[1752244338525,0.00234972,118010.0,118000.0,0.5716943]
[1752244339265,0.00234972,118010.0,118000.0,0.5726943]
[1752244340626,0.00234972,118010.0,118000.0,0.5736943]
[1752244340827,0.00234972,118010.0,118000.0,1.07416835]
[1752244343958,0.06734548,118020.0,118010.0,0.20337128]
[1752244344144,0.06946512,118020.0,118010.0,0.55268121]
[1752244344351,0.06946519,118020.0,118010.0,0.55268121]
[1752244344588,0.08641096,118020.0,118010.0,0.55268121]
[1752244344806,0.26434682,118020.0,118010.0,0.08542993]
[1752244345022,0.22675101,118010.0,118000.0,0.17149152]
[1752244345239,0.72934506,118010.0,118000.0,0.002]
[1752244345448,0.22887101,118010.0,118000.0,0.17996602]
[1752244345657,0.22887101,118010.0,118000.0,0.17996609]
[1752244345870,0.22039716,118010.0,118000.0,0.002]
[1752244346097,0.22352716,118010.0,118000.0,0.002]
[1752244346757,0.22752716,118010.0,118000.0,0.002]
[1752244346968,0.22752716,118010.0,118000.0,0.003]
[1752244347387,0.22752716,118010.0,118000.0,0.002]
[1752244347794,0.22952716,118010.0,118000.0,0.002]
[1752244348260,0.22952716,118010.0,118000.0,0.17149152]
[1752244348469,0.22952716,118010.0,118000.0,0.18844045]
[1752244348897,0.36144716,118010.0,118000.0,0.18844045]
[1752244349109,0.36144716,118010.0,118000.0,0.19691481]
[1752244349702,0.36992101,118010.0,118000.0,0.19691481]
[1752244350018,0.08546998,118010.0,118000.0,0.29929295]
[1752244350182,0.08546991,118010.0,118000.0,0.29929295]
[1752244350352,0.03495,118010.0,118000.0,0.29929295]
[1752244350995,0.04342335,118010.0,118000.0,0.29929295]
[1752244351247,0.04142335,118010.0,118000.0,0.29929295]
[1752244351751,0.03295,118010.0,118000.0,0.29929295]
[1752244352263,0.03395,118010.0,118000.0,0.29929295]
[1752244352642,0.04242335,118010.0,118000.0,0.29929295]
[1752244352850,0.03395,118010.0,118000.0,0.29929295]
[1752244353145,0.02995,118010.0,118000.0,0.29929295]
[1752244353378,0.04689656,118010.0,118000.0,0.29929295]
[1752244353582,0.05537005,118010.0,118000.0,0.29929295]
[1752244354007,0.05836998,118010.0,118000.0,0.29929295]
[1752244354176,0.06684355,118010.0,118000.0,0.29929295]
[1752244354635,0.05836998,118010.0,118000.0,0.29929295]
[1752244355025,0.07531718,118010.0,118000.0,0.29929295]
[1752244355260,0.74514856,118010.0,118000.0,0.002]
[1752244355472,0.74514856,118010.0,118000.0,0.17149152]
[1752244355473,0.24467451,118010.0,118000.0,0.17149152]
[1752244355652,0.24467451,118010.0,118000.0,0.17996595]
[1752244355865,0.21559113,118010.0,118000.0,0.19691445]
[1752244356174,0.39354214,118010.0,118000.0,0.19691445]
[1752244356372,0.39354214,118010.0,118000.0,0.18844031]
[1752244356546,0.3850685,118010.0,118000.0,0.19691452]
[1752244357151,0.3850685,118010.0,118000.0,0.19691459]
[1752244357759,0.36812101,118010.0,118000.0,0.18844031]
[1752244358012,0.36812101,118010.0,118000.0,0.19691459]
[1752244358686,0.36812101,118010.0,118000.0,0.18844031]
[1752244359432,0.36812101,118010.0,118000.0,0.17996595]
[1752244359637,0.35964716,118010.0,118000.0,0.17149152]
[1752244359842,0.35964716,118010.0,118000.0,0.17996609]
[1752244360022,0.35964716,118010.0,118000.0,0.18844059]
[1752244360194,0.35964716,118010.0,118000.0,0.19691502]
[1752244360989,1.28555114,118010.0,118000.0,0.002]
[1752244361253,6.37834123,118010.0,118000.0,0.002]
[1752244361445,0.52645597,117990.0,117980.0,0.002]
[1752244361575,0.52645597,117990.0,117980.0,0.00214972]
[1752244361576,1.21007002,117990.0,117980.0,0.00214972]
[1752244361771,1.21320002,117990.0,117980.0,0.00214972]
[1752244361969,1.35137715,117990.0,117980.0,0.00014972]
[1752244362180,0.52648757,117970.0,117960.0,0.002]
[1752244362426,1.21110162,117970.0,117960.0,0.002]
[1752244362634,1.21423162,117970.0,117960.0,0.002]
[1752244363438,1.21523162,117970.0,117960.0,0.002]
[1752244363646,1.2235839,117970.0,117960.0,0.002]
[1752244364073,1.2235839,117970.0,117960.0,0.18002643]
[1752244364074,1.0926639,117970.0,117960.0,0.18002643]
[1752244364284,0.41417843,117970.0,117960.0,0.1969811]
[1752244364481,0.56317575,117970.0,117960.0,0.2139352]
[1752244364705,0.7411871,117970.0,117960.0,0.21393535]
[1752244365369,0.38062615,117970.0,117960.0,0.21393485]
[1752244365611,0.53797554,117970.0,117960.0,0.20545791]
[1752244365816,0.52102245,117970.0,117960.0,0.21393449]
[1752244366083,0.53797533,117970.0,117960.0,0.21393449]
[1752244366294,0.54633939,117970.0,117960.0,0.21393449]
[1752244366494,0.55481597,117970.0,117960.0,0.21393449]
[1752244366796,1.22299596,117970.0,117960.0,0.17154899]
[1752244367221,0.69892191,117970.0,117960.0,0.18850352]
[1752244367678,0.69892191,117970.0,117960.0,0.20545769]
[1752244367882,0.70739864,117970.0,117960.0,0.18002636]
[1752244368098,0.70739864,117970.0,117960.0,0.18850366]
[1752244368524,0.70739864,117970.0,117960.0,0.19698082]
[1752244368952,0.69892206,117970.0,117960.0,0.17154899]
[1752244369151,0.58442541,117970.0,117960.0,0.17154899]
[1752244369382,0.70790868,117970.0,117960.0,0.002]
[1752244370141,0.70790868,117970.0,117960.0,0.18850366]
[1752244370332,0.70790868,117970.0,117960.0,0.18002636]
[1752244370533,0.54685064,117970.0,117960.0,0.1969806]
[1752244370789,0.54685064,117970.0,117960.0,0.19698068]
[1752244370790,0.53790374,117970.0,117960.0,0.19698068]
[1752244370990,0.70743836,117970.0,117960.0,0.18850366]
[1752244371819,0.70743836,117970.0,117960.0,0.18002636]
[1752244372018,0.72486199,117970.0,117960.0,0.002]
[1752244372245,1.22533604,117970.0,117960.0,0.002]
[1752244373248,1.22533604,117970.0,117960.0,0.18002643]
[1752244373443,1.22533604,117970.0,117960.0,0.002]
[1752244374455,0.72486199,117970.0,117960.0,0.01047744]
[1752244374653,1.21685946,117970.0,117960.0,0.002]
[1752244374862,0.71638541,117970.0,117960.0,0.002]
[1752244375068,1.21685946,117970.0,117960.0,0.002]
[1752244376327,0.58442541,117970.0,117960.0,0.17154899]
[1752244376544,0.69048541,117970.0,117960.0,0.18850366]
[1752244376720,0.69048541,117970.0,117960.0,0.1885038]
[1752244376942,0.69048541,117970.0,117960.0,0.17154899]
[1752244377170,0.34412,117970.0,117960.0,0.28241039]
[1752244377339,0.342,117970.0,117960.0,0.31019039]
[1752244377550,0.49103238,117970.0,117960.0,0.31342039]
[1752244377754,0.5015586,117970.0,117960.0,0.31342039]
[1752244378083,0.47613,117970.0,117960.0,0.31019039]
[1752244378533,0.47408,117970.0,117960.0,0.31342039]
[1752244378867,0.342,117970.0,117960.0,0.31342039]
[1752244379269,0.47408,117970.0,117960.0,0.31342039]
[1752244379777,0.49308266,117970.0,117960.0,0.31342039]
[1752244379979,0.49308266,117970.0,117960.0,0.31019039]
[1752244380433,0.49308259,117970.0,117960.0,0.31019039]
[1752244380804,0.49308259,117970.0,117960.0,0.31342039]
[1752244380805,0.002,117970.0,117960.0,0.31342039]
[1752244381003,0.002,117970.0,117960.0,0.33702039]
[1752244381203,0.002,117970.0,117960.0,0.85203529]
[1752244382471,0.002,117970.0,117960.0,0.35156124]
[1752244382681,0.001,117970.0,117960.0,0.35156124]
[1752244383023,0.001,117970.0,117960.0,0.35256124]
[1752244383425,0.15223037,117990.0,117980.0,0.02542738]
[1752244383629,0.16275471,117990.0,117980.0,0.28885307]
[1752244383820,0.17122986,117990.0,117980.0,0.28885307]
[1752244384535,0.34073575,117990.0,117980.0,0.28885307]
[1752244384742,0.18170515,117990.0,117980.0,0.28885307]
[1752244385059,0.17622986,117990.0,117980.0,0.28885307]
[1752244385264,0.18470508,117990.0,117980.0,0.28885307]
[1752244385483,0.15927964,117990.0,117980.0,0.28885307]
[1752244385692,0.17622986,117990.0,117980.0,0.28885307]
[1752244386227,0.16775464,117990.0,117980.0,0.28885307]
[1752244386468,0.16443471,117990.0,117980.0,0.29093307]
[1752244386844,0.35089097,117990.0,117980.0,0.29093307]
[1752244387113,0.35089155,117990.0,117980.0,0.29093307]
[1752244387241,0.35409155,117990.0,117980.0,0.29093307]
[1752244387444,0.35409155,117990.0,117980.0,0.28885307]
[1752244387643,0.34561662,117990.0,117980.0,0.27190198]
[1752244387850,0.37101662,117990.0,117980.0,0.2803777]
[1752244388649,0.3540664,117990.0,117980.0,0.27190213]
[1752244388971,0.15916022,117990.0,117980.0,0.29732915]
[1752244389175,0.17611023,117990.0,117980.0,0.28885364]
[1752244389605,0.16763494,117990.0,117980.0,0.29732915]
[1752244389809,0.03042486,117990.0,117980.0,0.32703915]
[1752244390137,0.15386972,117990.0,117980.0,0.32703915]
[1752244390359,0.16234471,117990.0,117980.0,0.32703915]
[1752244390568,0.03042479,117990.0,117980.0,0.32703915]
[1752244390781,0.16234479,117990.0,117980.0,0.32703915]
[1752244390996,0.01347471,117990.0,117980.0,0.45895915]
[1752244391193,0.01347471,117990.0,117980.0,0.4994]
[1752244391194,0.005,117990.0,117980.0,0.4994]
[1752244391406,0.01347479,117990.0,117980.0,0.4994]
[1752244391821,0.005,117990.0,117980.0,0.4994]
[1752244391994,0.1999309,117990.0,117980.0,0.46502449]
[1752244392209,0.02399979,117990.0,117980.0,0.4735]
[1752244392585,0.03247494,117990.0,117980.0,0.4735]
[1752244392772,0.04095016,117990.0,117980.0,0.4735]
[1752244393403,0.19145561,117990.0,117980.0,0.4735]
[1752244393622,0.20840597,117990.0,117980.0,0.4735]
[1752244393820,0.20840597,117990.0,117980.0,0.47354]
[1752244393821,0.03042479,117990.0,117980.0,0.47354]
[1752244394023,0.02194972,117990.0,117980.0,0.47354]
[1752244394223,0.01347479,117990.0,117980.0,0.47354]
[1752244394580,0.02194972,117990.0,117980.0,0.47354]
[1752244394788,0.03042487,117990.0,117980.0,0.47354]
[1752244395194,0.02194972,117990.0,117980.0,0.47354]
[1752244395396,0.01347479,117990.0,117980.0,0.47354]
[1752244395913,0.005,117990.0,117980.0,0.49904]
[1752244396106,0.01347464,117990.0,117980.0,0.49904]
[1752244396309,0.005,117990.0,117980.0,0.49904]
[1752244396668,0.002,117990.0,117980.0,0.49904]
[1752244397076,0.001,117990.0,117980.0,0.99951405]
[1752244397525,0.002,117990.0,117980.0,0.99951405]
[1752244397671,0.002,117990.0,117980.0,0.86759405]
[1752244397876,0.002,117990.0,117980.0,0.49904]
[1752244399915,0.002,117990.0,117980.0,0.99951405]
[1752244402403,0.002,117990.0,117980.0,0.49904]
[1752244403174,0.002,117990.0,117980.0,0.47354]
[1752244404144,0.01047464,117990.0,117980.0,0.47354]
[1752244404356,0.002,117990.0,117980.0,0.47354]
[1752244404757,0.002,117990.0,117980.0,0.49874]
[1752244408080,0.002,117990.0,117980.0,0.99921405]
[1752244408297,0.002,117990.0,117980.0,1.33921405]
[1752244408506,0.002,118010.0,118000.0,0.76072927]
[1752244408777,0.00214961,118010.0,118000.0,0.9801592]
[1752244408981,0.00214961,118010.0,118000.0,0.48292515]
[1752244409182,0.00214961,118010.0,118000.0,0.9833992]
[1752244410896,0.00214961,118010.0,118000.0,0.9843992]
[1752244411434,0.00214961,118010.0,118000.0,0.48392515]
[1752244412193,0.00214961,118010.0,118000.0,0.48492515]
[1752244413054,0.00214961,118010.0,118000.0,0.9853992]
[1752244417268,0.00214961,118010.0,118000.0,0.9887882]
[1752244421593,0.00214961,118010.0,118000.0,1.2805882]
[1752244422413,0.00214961,118010.0,118000.0,1.6205882]
[1752244423457,0.002,118030.0,118020.0,0.25872219]
[1752244423669,0.00212684,118030.0,118020.0,1.11042617]
[1752244423904,0.00212684,118030.0,118020.0,1.11366617]
[1752244424110,1e-08,118030.0,118020.0,1.11366617]
[1752244424310,0.0002,118040.0,118030.0,0.25740568]
[1752244424582,0.0002,118040.0,118030.0,1.11234966]
[1752244425124,0.0002,118040.0,118030.0,1.13723175]
[1752244425538,0.0002,118040.0,118030.0,1.14023175]
[1752244425938,0.0002,118040.0,118030.0,1.14223175]
[1752244427625,0.0002,118040.0,118030.0,1.43403175]
[1752244429722,0.0022,118050.0,118040.0,0.24334833]
[1752244429932,0.0022,118070.0,118060.0,0.20935616]
[1752244430101,0.0026988,118070.0,118060.0,1.08560014]
[1752244430309,0.0026988,118070.0,118060.0,1.08878014]
[1752244430514,0.0026988,118070.0,118060.0,1.11378014]
[1752244431351,0.0026988,118070.0,118060.0,1.11382014]
[1752244431352,0.0056988,118070.0,118060.0,1.11382014]
[1752244431554,0.0056988,118070.0,118060.0,1.08882014]
[1752244431762,0.0056988,118070.0,118060.0,0.59678669]
[1752244431931,0.0077488,118070.0,118060.0,0.56890669]
[1752244432112,0.05368682,118070.0,118060.0,0.29482609]
[1752244432326,0.08675615,118070.0,118060.0,0.4205555]
[1752244432672,0.26561673,118070.0,118060.0,0.2887555]
[1752244432886,0.74915276,118070.0,118060.0,4e-05]
[1752244433627,6.26308811,118070.0,118060.0,4e-05]
[1752244433872,6.39624699,118070.0,118060.0,4e-05]
[1752244434192,6.32663994,118070.0,118060.0,4e-05]
[1752244434400,6.32563994,118070.0,118060.0,4e-05]
[1752244434596,6.32263994,118070.0,118060.0,4e-05]
[1752244434800,6.32663994,118070.0,118060.0,4e-05]
[1752244435000,6.33463994,118070.0,118060.0,0.00104]
[1752244435452,6.33063994,118070.0,118060.0,0.00104]
[1752244435650,6.42106987,118070.0,118060.0,0.00104]
[1752244435865,0.23759277,118030.0,118020.0,0.002]
[1752244436066,0.74011682,118030.0,118020.0,0.002]
[1752244436410,0.74311682,118030.0,118020.0,0.01047314]
[1752244436620,0.23417071,118030.0,118020.0,0.01047314]
[1752244436827,0.06472206,118030.0,118020.0,0.19688156]
[1752244437109,0.08166617,118030.0,118020.0,0.20635419]
[1752244437344,0.00505,118030.0,118020.0,0.29178412]
[1752244437548,0.00205,118030.0,118020.0,0.36131758]
[1752244437757,0.3514712,118040.0,118030.0,0.19486483]
[1752244437878,0.3535212,118040.0,118030.0,0.28029476]
[1752244438078,0.35352127,118040.0,118030.0,0.28029476]
[1752244438322,0.00505,118040.0,118030.0,0.28029476]
[1752244438552,0.00205,118040.0,118030.0,0.28233476]
[1752244439083,0.00405,118040.0,118030.0,0.28233476]
[1752244439634,0.00405,118040.0,118030.0,0.41409476]
[1752244440286,0.002,118040.0,118030.0,0.41409476]
[1752244441254,0.005,118040.0,118030.0,0.41409476]
[1752244441438,0.005,118040.0,118030.0,0.43839476]
[1752244441737,0.005,118040.0,118030.0,0.94204881]
[1752244441946,0.005,118040.0,118030.0,0.98138966]
[1752244442172,0.002,118040.0,118030.0,0.98138966]
[1752244442391,0.0309,118070.0,118060.0,0.19481531]
[1752244442608,0.0334488,118070.0,118060.0,0.54376524]
[1752244443040,0.0077488,118070.0,118060.0,0.54376524]
[1752244443259,0.0047488,118070.0,118060.0,0.54580524]
[1752244443909,0.0026988,118070.0,118060.0,0.57080524]
[1752244444116,0.0047488,118070.0,118060.0,0.57080524]
[1752244444321,0.0047488,118070.0,118060.0,0.54580524]
[1752244444991,0.0077488,118070.0,118060.0,0.54580524]
[1752244445469,0.0056988,118070.0,118060.0,0.54898524]
[1752244445879,0.0077488,118070.0,118060.0,0.54580524]
[1752244448792,0.0443177,118070.0,118060.0,0.54376524]
[1752244449015,0.0680177,118070.0,118060.0,0.54376524]
[1752244449398,0.0595488,118070.0,118060.0,0.54376524]
[1752244449821,0.0358488,118070.0,118060.0,0.54376524]
[1752244450250,0.0358488,118070.0,118060.0,0.28024524]
[1752244450423,0.0619488,118070.0,118060.0,0.28024524]
[1752244450823,0.0077488,118070.0,118060.0,0.28228524]
[1752244451402,0.0056988,118070.0,118060.0,0.30946524]
[1752244452513,0.0056988,118070.0,118060.0,0.31779632]
[1752244454834,0.0056988,118070.0,118060.0,0.33233717]
[1752244456773,0.0056988,118070.0,118060.0,0.35853717]
[1752244458775,0.0056988,118070.0,118060.0,0.33233717]
[1752244458969,0.0076788,118070.0,118060.0,0.32400609]
[1752244459168,0.0076788,118070.0,118060.0,0.29682609]
[1752244459380,0.0056988,118070.0,118060.0,0.32380609]
[1752244461810,0.0056988,118070.0,118060.0,0.34950609]
[1752244462427,0.0056988,118070.0,118060.0,0.84998014]
[1752244462630,0.0645028,118070.0,118060.0,0.84998014]
[1752244462831,0.0002,118080.0,118070.0,0.19479881]
[1752244463034,0.00014959,118080.0,118070.0,1.11105364]
[1752244463446,0.00014959,118080.0,118070.0,0.58677959]
[1752244464209,0.00314959,118080.0,118070.0,0.58677959]
[1752244464417,0.00214959,118080.0,118070.0,0.58677959]
[1752244464745,0.00214959,118080.0,118070.0,0.58777959]
[1752244464951,0.00014959,118080.0,118070.0,0.58777959]
[1752244466177,0.00014959,118080.0,118070.0,0.58977959]
[1752244469058,0.00014959,118080.0,118070.0,1.09025364]
[1752244470439,0.00014959,118080.0,118070.0,1.11545364]
[1752244471599,0.00014959,118080.0,118070.0,1.09025364]
[1752244472860,0.00014959,118080.0,118070.0,1.10072027]
[1752244473314,0.3918,118110.0,118100.0,0.19474933]
[1752244473544,0.3968,118110.0,118100.0,1.05439994]
[1752244473803,0.3968,118110.0,118100.0,0.54345926]
[1752244474066,0.59153271,118110.0,118100.0,0.51805794]
[1752244474323,0.23478201,118100.0,118090.0,0.26328]
[1752244474569,0.42237102,118090.0,118080.0,0.44110067]
[1752244474819,1.10767405,118090.0,118080.0,0.16935184]
[1752244475066,0.92984366,118090.0,118080.0,0.19475797]
[1752244475292,0.9383117,118090.0,118080.0,0.19475804]
[1752244476464,1.10867405,118090.0,118080.0,0.17782067]
[1752244476679,0.93084409,118090.0,118080.0,0.1778206]
[1752244476968,0.42837152,118090.0,118080.0,0.18628928]
[1752244477193,0.59773387,118090.0,118080.0,0.16935184]
[1752244477406,0.06723708,118080.0,118070.0,0.19479917]
[1752244477628,0.06376826,118080.0,118070.0,0.34337754]
[1752244478089,0.0553,118080.0,118070.0,0.34337754]
[1752244479102,0.0293,118080.0,118070.0,0.42880747]
[1752244479305,0.00198,118080.0,118070.0,0.94753534]
[1752244479710,0.00198,118080.0,118070.0,0.44537832]
[1752244481230,0.005,118080.0,118070.0,0.44334832]
[1752244481378,0.029,118080.0,118070.0,0.44334832]
[1752244481979,0.029,118080.0,118070.0,0.44434832]
[1752244482751,0.00198,118080.0,118070.0,0.44637832]
[1752244485018,0.00198,118080.0,118070.0,0.44637832]
[1752244486978,0.00496,118080.0,118070.0,0.44434832]
[1752244487337,0.00198,118080.0,118070.0,0.44649832]
[1752244487543,0.00298,118080.0,118070.0,0.44649832]
[1752244488527,0.00596,118080.0,118070.0,0.44334832]
[1752244488728,0.04639658,118080.0,118070.0,0.42880747]
[1752244488928,0.08883366,118080.0,118070.0,0.41186917]
[1752244489318,0.09630235,118080.0,118070.0,0.42033843]
[1752244489544,0.25721122,118080.0,118070.0,0.25482096]
[1752244489755,0.24874275,118080.0,118070.0,0.17039103]
[1752244489966,0.24874275,118080.0,118070.0,0.17786058]
[1752244490174,0.24874275,118080.0,118070.0,0.18633006]
[1752244490598,0.00846919,118070.0,118060.0,0.32645546]
[1752244490841,0.57049043,118070.0,118060.0,0.08557951]
[1752244491050,0.57895976,118070.0,118060.0,0.16955496]
[1752244491883,0.41803828,118070.0,118060.0,0.19496525]
[1752244492133,0.40956845,118070.0,118060.0,0.19496539]
[1752244492339,0.34205,118070.0,118060.0,0.29948506]
[1752244492545,0.34205,118070.0,118060.0,0.43422506]
[1752244492751,0.34205,118070.0,118060.0,0.42897506]
[1752244492963,0.34205,118070.0,118060.0,0.27192527]
[1752244492964,0.41973749,118070.0,118060.0,0.27192527]
[1752244493289,0.55237749,118070.0,118060.0,0.28039525]
[1752244493492,0.55237749,118070.0,118060.0,0.28886516]
[1752244493930,0.56096634,118070.0,118060.0,0.28039525]
[1752244494110,0.56096634,118070.0,118060.0,0.28886516]
[1752244494453,0.53555885,118070.0,118060.0,0.29733492]
[1752244494679,0.54402782,118070.0,118060.0,0.29733492]
[1752244495032,0.38818775,118070.0,118060.0,0.29733492]
[1752244495264,0.34305,118070.0,118060.0,0.29948492]
[1752244495414,0.341,118070.0,118060.0,0.32828492]
[1752244496929,0.47164,118080.0,118070.0,0.18632904]
[1752244497160,0.00205,118080.0,118070.0,0.53718897]
[1752244497489,0.40274682,118100.0,118090.0,0.19476583]
[1752244497627,0.54490386,118100.0,118090.0,0.19476583]
[1752244497838,0.54490386,118100.0,118090.0,0.18629822]
[1752244498041,0.55337104,118100.0,118090.0,0.18629822]
[1752244498247,0.55337104,118100.0,118090.0,0.20323365]
[1752244498481,0.55337104,118100.0,118090.0,0.21170126]
[1752244498678,0.56183836,118100.0,118090.0,0.20323365]
[1752244499129,0.55337104,118100.0,118090.0,0.21170126]
[1752244499291,0.37063,118100.0,118090.0,0.29713119]
[1752244499472,0.50227,118100.0,118090.0,0.29713119]
[1752244499697,0.51280257,118100.0,118090.0,0.29713119]
[1752244499910,0.37818257,118100.0,118090.0,0.56256119]
[1752244500111,0.35258257,118100.0,118090.0,0.56256119]
[1752244500582,0.36304932,118100.0,118090.0,0.56256119]
[1752244500710,0.35458257,118100.0,118090.0,0.56256119]
[1752244500910,0.35756257,118100.0,118090.0,0.56256119]
[1752244501150,0.34605,118100.0,118090.0,0.56256119]
[1752244501356,0.00605,118100.0,118090.0,0.56256119]
[1752244501508,0.01749682,118100.0,118090.0,0.56256119]
[1752244501711,0.03243083,118100.0,118090.0,0.56041119]
[1752244501911,0.06339801,118100.0,118090.0,0.5434759]
[1752244502298,0.06339801,118100.0,118080.0,0.16937669]
[1752244502299,0.20969829,118090.0,118080.0,0.16937669]
[1752244502476,0.83707748,118090.0,118070.0,0.32643889]
[1752244502681,0.0502052,118080.0,118070.0,0.42033793]
[1752244502887,0.22461189,118080.0,118070.0,0.39493044]
[1752244503021,0.25668065,118080.0,118070.0,0.40339977]
[1752244503224,0.23974399,118080.0,118070.0,0.16939103]
[1752244503479,0.05887667,118070.0,118060.0,0.31813499]
[1752244503715,0.05543727,118070.0,118060.0,0.41203475]
[1752244504110,0.0554372,118070.0,118060.0,0.41203475]
[1752244504312,0.04696801,118070.0,118060.0,0.41203475]
[1752244504636,0.03003,118070.0,118060.0,0.41203475]
[1752244504814,0.36808,118080.0,118070.0,0.19479881]
[1752244504963,0.49062673,118080.0,118070.0,0.28237874]
[1752244505162,0.49360673,118080.0,118070.0,0.28237874]
[1752244505368,0.49360666,118080.0,118070.0,0.28237874]
[1752244505566,0.49360666,118080.0,118070.0,0.28022874]
[1752244505789,0.49360666,118080.0,118070.0,0.28022889]
[1752244505790,0.53464396,118080.0,118070.0,0.28022889]
[1752244505998,0.70402065,118080.0,118070.0,0.25482096]
[1752244506207,0.69555239,118080.0,118070.0,0.28022903]
[1752244506484,0.69555239,118080.0,118070.0,0.26429044]
[1752244506692,0.58791239,118080.0,118070.0,0.001]
[1752244506892,1.21026101,118080.0,118070.0,0.001]
[1752244507640,1.21026101,118080.0,118070.0,0.002]
[1752244508028,1.21026101,118080.0,118070.0,0.001]
[1752244508421,1.21126101,118080.0,118070.0,0.001]
[1752244508637,0.58044399,118080.0,118070.0,0.001]
[1752244508842,0.71208399,118080.0,118070.0,0.001]
[1752244509046,0.71208399,118080.0,118070.0,0.17039103]
[1752244509268,0.71208399,118080.0,118070.0,0.16939103]
[1752244509477,0.70561545,118080.0,118070.0,0.16939103]
[1752244510299,0.67304669,118080.0,118060.0,0.18649352]
[1752244510510,0.04213866,118070.0,118060.0,0.19496343]
[1752244510707,0.04716866,118070.0,118060.0,0.19496343]
[1752244510949,0.40410668,118070.0,118060.0,0.19496343]
[1752244511148,0.41257608,118070.0,118060.0,0.19496343]
[1752244511356,0.39563735,118070.0,118060.0,0.20343326]
[1752244511761,0.37023,118070.0,118060.0,0.21190302]
[1752244511971,0.3534989,118070.0,118060.0,0.21190302]
[1752244512175,0.37890653,118070.0,118060.0,0.19496343]
[1752244512376,0.39373713,118070.0,118060.0,0.20343319]
[1752244512580,0.40220646,118070.0,118060.0,0.19496343]
[1752244512975,0.72713807,118070.0,118060.0,0.18649394]
[1752244513093,0.70323807,118070.0,118060.0,0.19496406]
[1752244513303,0.52537756,118070.0,118060.0,0.2119038]
[1752244513509,0.51690823,118070.0,118060.0,0.2119038]
[1752244513710,0.52537756,118070.0,118060.0,0.2119038]
[1752244513974,0.52537756,118070.0,118060.0,0.20343397]
[1752244514473,0.51690823,118070.0,118060.0,0.2119038]
[1752244514672,0.52537756,118070.0,118060.0,0.2119038]
[1752244514899,0.51690823,118070.0,118060.0,0.2119033]
[1752244515074,0.50843904,118070.0,118060.0,0.20343354]
[1752244515378,0.52537749,118070.0,118060.0,0.19496371]
[1752244516010,0.703238,118070.0,118060.0,0.16955349]
[1752244516188,0.71926896,118070.0,118060.0,0.16955349]
[1752244516409,0.71926896,118070.0,118060.0,0.17802361]
[1752244516597,0.69476896,118070.0,118060.0,0.18649359]
[1752244516827,0.52537793,118070.0,118060.0,0.18649359]
[1752244517161,0.52537793,118070.0,118060.0,0.19496335]
[1752244517162,0.50939897,118070.0,118060.0,0.19496335]
[1752244517362,0.51786801,118070.0,118060.0,0.19496335]
[1752244517671,0.52633727,118070.0,118060.0,0.18649359]
[1752244518062,0.52633727,118070.0,118060.0,0.19496342]
[1752244518269,0.52633727,118070.0,118060.0,0.17802361]
[1752244518270,0.7031977,118070.0,118060.0,0.17802361]
[1752244518727,0.68625969,118070.0,118060.0,0.16955349]
[1752244518895,0.71185969,118070.0,118060.0,0.16955349]
[1752244519412,0.03679904,118070.0,118060.0,0.18649394]
[1752244519566,0.13565,118070.0,118060.0,0.22902368]
[1752244519765,0.13565,118070.0,118060.0,0.34146361]
[1752244519766,0.002,118070.0,118060.0,0.34146361]
[1752244520054,0.002,118070.0,118060.0,0.85518148]
[1752244520607,0.003,118070.0,118060.0,0.85518148]
[1752244521021,0.001,118070.0,118060.0,0.85518148]
[1752244521208,0.17376968,118100.0,118090.0,0.18629822]
[1752244521372,0.51040243,118100.0,118090.0,0.19476583]
[1752244521737,0.50193489,118100.0,118090.0,0.19476583]
[1752244522152,0.02208286,118110.0,118100.0,0.1862823]
[1752244522404,0.33363314,118110.0,118100.0,0.18628244]
[1752244522619,0.69723314,118110.0,118100.0,0.19474955]
[1752244522816,0.69723314,118110.0,118100.0,0.18628244]
[1752244523227,0.52789947,118110.0,118100.0,0.19474941]
[1752244523427,0.70569982,118110.0,118100.0,0.17781526]
[1752244523783,0.57409982,118110.0,118100.0,0.17781526]
[1752244523993,0.70569982,118110.0,118100.0,0.17781526]
[1752244524211,0.70569982,118110.0,118100.0,0.19474919]
[1752244524212,0.3513,118110.0,118100.0,0.19474919]
[1752244524411,0.14841611,118110.0,118100.0,0.19673919]
[1752244524666,0.16534868,118110.0,118100.0,0.19673919]
[1752244524900,0.15688229,118110.0,118100.0,0.19673919]
[1752244525047,0.14841611,118110.0,118100.0,0.19673919]
[1752244525259,0.00835,118110.0,118100.0,0.19673919]
[1752244525459,0.0062,118110.0,118100.0,0.58691997]
[1752244525830,0.0062,118110.0,118100.0,0.61231997]
[1752244526236,0.0122,118110.0,118100.0,0.61231997]
[1752244528593,0.0122,118110.0,118100.0,0.58691997]
[1752244532217,0.0122,118110.0,118100.0,1.11109699]
[1752244533042,0.0022,118110.0,118100.0,1.11109699]
[1752244535578,0.0022,118110.0,118100.0,1.45109699]